Cogmind - Beta 14 *** ADVENTURER MODE // 2024.08.25 @ 10:13:27 Player: Ms. V3-11A Result: Destroyed by P-60 Hacker with Shock Rifle Performance ------------- Evolutions (2) 1000 Regions Visited (4) 800 Robots Destroyed (71) 355 Value Destroyed (2891) 2891 Prototype IDs (13) 260 Alien Tech Used (0) 0 Bonus (467) 467 TOTAL SCORE: 5773 Bonus ------- High Alert Combat Kills 267 Entered Garrisons 200 Cogmind --------- Core Integrity 0/550 Matter 143/300 Energy 159/180 System Corruption 18% Temperature Hot (224) Movement Core (550) Ox10 Location -8/Garrison Parts ------- > --- POWER (1) -------- Meta Core > --- PROPULSION (3) --- (None) > --- UTILITY (5) ------ Large Storage Unit Makeshift System Shield > --- WEAPON (2) ------- Plasma Cannon > --- INVENTORY (15) --- Light Deuterium Engine Large Storage Unit Improved Medium Armor Plating Improved Medium Armor Plating Relay Coupler [NC] (35) Relay Coupler [Grunt] (35) Relay Coupler [Grunt] (37) Relay Coupler [Sentry] (28) Relay Coupler [Sentry] (24) Relay Coupler [Hunter] (22) Remote Datajack Heavy Hammer Peak State ------------ > --- POWER ------------ Meta Core > --- PROPULSION ------- Carbon-fiber Leg Carbon-fiber Leg Carbon-fiber Leg Makeshift Leg > --- UTILITY ---------- Heat Sink Large Storage Unit Reaction Control System Core Shielding Hardened Medium Armor Plating Makeshift System Shield > --- WEAPON ----------- Heavy Particle Gun High-powered Shotgun Heavy Battle Rifle > --- INVENTORY -------- Light Deuterium Engine Light Nuclear Core Light Treads Improved Aluminum Leg Carbon-fiber Leg Large Storage Unit Improved Sensor Array Core Shielding Light Armor Plating Field Laser Particle Cannon Subdweller Beam Cannon High-powered Shotgun Rocket Launcher Heavy Hammer [Rating: 53] Favorites ----------- Power Meta Core Engine Makeshift Power Source Power Core Meta Core Propulsion Light Treads Treads Light Treads Leg Carbon-fiber Leg Utility Large Storage Unit Device Heat Sink Storage Large Storage Unit Hackware Makeshift System Shield Protection Light Armor Plating Weapon Particle Gun Energy Gun Particle Gun Energy Cannon Particle Cannon Ballistic Gun Heavy Battle Rifle Build | -11 -10 -10 -8 -8 ------- Run | Yrd Mat Sub Mat Gar Slots Evolved 4 | . . . 4 . Power . | . . . . . Propulsion 1 | . . . 1 . Utility 3 | . . . 3 . Weapon . | . . . . . Parts Attached 59 | . 9 8 23 19 Power 4 | . 1 2 1 . Engine 2 | . . 2 . . Core 2 | . 1 . 1 . Reactor . | . . . . . Propulsion 20 | . 4 3 10 3 Treads 6 | . 2 3 1 . Leg 14 | . 2 . 9 3 Wheel . | . . . . . Hover . | . . . . . Flight . | . . . . . Utility 15 | . 2 1 6 6 Device 5 | . 1 . 3 1 Storage 1 | . 1 . . . Processor . | . . . . . Hackware 1 | . . . 1 . Protection 8 | . . 1 2 5 Artifact . | . . . . . Weapon 20 | . 2 2 6 10 Energy Gun 12 | . 1 1 2 8 Energy Cannon 2 | . 1 . . 1 Ballistic Gun 6 | . . 1 4 1 Ballistic Cannon . | . . . . . Launcher . | . . . . . Special Weapon . | . . . . . Impact Weapon . | . . . . . Slashing Weapon . | . . . . . Piercing Weapon . | . . . . . Special Melee Weapon . | . . . . . Unidentified Prototypes 2 | . . . 2 . Parts Lost 26 | . . 5 3 18 Power 2 | . . 2 . . Propulsion 9 | . . 2 . 7 Utility 6 | . . . 1 5 Weapon 9 | . . 1 2 6 Highest Loss Streak 11 | . . 1 1 11 To Critical Strikes . | . . . . . Average Slot Usage (%) 94 | . 90 99 85 93 Engine 6 | . 7 11 1 . Core 4 | . 6 2 5 7 Treads 13 | . 2 27 4 . Leg 13 | . 24 . 23 24 Device 6 | . 5 5 8 8 Storage 11 | . 14 14 7 7 Hackware 2 | . . . 5 7 Protection 8 | . . 8 8 18 Energy Gun 13 | . 20 14 9 10 Energy Cannon 2 | . 7 . . . Ballistic Gun 8 | . . 13 9 5 Peak Build Rating 53 | 6 12 17 53 51 Average Rating 23 | 6 8 15 41 43 On Entrance 17 | 6 6 12 14 51 Naked Turns . | . . . . . Heaviest Build 53 | 14 33 35 47 53 Greatest Support 65 | 20 40 40 65 61 Greatest Overweight (x) 9 | . 1 1 . 9 Average Overweight (x) . | . . . . . Largest Inventory Capacity 15 | 8 15 15 15 15 Average Capacity 13 | 8 9 15 15 15 Most Carried 15 | 5 15 15 15 15 Average Carried 12 | 5 7 13 12 14 Final Capacity 15 | 8 15 15 15 15 Final Carried 15 | 4 14 12 15 12 Class Distribution -------------------- 70% | Mutant 13% | Hacker-Mutant 12% | Hacker-Tank 3% | Hacker-Gunner Dominant Class ---------------- Mutant | -10/Materials Mutant | -10/Subcaves Hacker-Tank | -8/Materials Hacker-Mutant | -8/Garrison Resources | -11 -10 -10 -8 -8 ----------- Run | Yrd Mat Sub Mat Gar Matter Collected 1297 | 200 90 408 314 285 Remotely . | . . . . . Salvage Created 2431 | . 319 642 696 774 Parts 136 | . 22 31 42 41 Haulers Intercepted 2 | . 1 . 1 . Recyclers Shooed . | . . . . . Parts Field Recycled . | . . . . . Retrieved Matter . | . . . . . Parts Self-Destructed 14 | . . 14 . . Prevented . | . . . . . Kills | -11 -10 -10 -8 -8 ------- Run | Yrd Mat Sub Mat Gar Combat Hostiles Destroyed 68 | . 6 19 18 25 Guns 65 | . 4 19 18 24 Cannons 2 | . 2 . . . AOE 1 | . . . . 1 Classes Destroyed 10 | . 2 2 2 4 Hauler 2 | . 1 . 1 . Operator 1 | . . . 1 . Swarmer 23 | . . 4 8 11 Grunt 14 | . 6 1 4 3 Duelist 1 | . . . . 1 Protector 1 | . . . . 1 Sentry 8 | . . . 6 2 Demolisher 1 | . . . . 1 Programmer 6 | . . . . 6 Subdweller 14 | . . 14 . . Best Kill Streak 8 | . 3 4 8 8 Combat Bots Only 8 | . 3 4 8 8 Max Kills in Single Turn 2 | . 1 2 1 2 Gunslinging 1 | . . 1 . 1 Exploded 1 | . . . . 1 Melee . | . . . . . Uniques/NPCs Destroyed . | . . . . . Combat | -11 -10 -10 -8 -8 -------- Run | Yrd Mat Sub Mat Gar Hostile Shots Fired 473 | . 13 95 85 280 Missed 137 | . 2 33 29 73 Damage Taken 4310 | . 114 1037 613 2546 Core 783 | . 8 217 115 443 Absorbed by Shields 47 | . . . . 47 Redirected to Shielding 125 | . . . 14 111 Ignored by Resistances 1243 | . 33 290 181 739 Regen/Repaired (Parts) 120 | . . . 120 . Core Remaining (%) 55 | 100 . 10 . . Volleys Fired 279 | . 18 121 38 102 Largest 3 | . 2 2 3 3 Hottest 158 | . 133 133 158 118 Shots Fired 552 | . 34 232 102 184 Gun 525 | . 20 228 102 175 Cannon 27 | . 14 4 . 9 Launcher . | . . . . . Special . | . . . . . Kinetic 228 | . . 116 46 66 Thermal 254 | . 26 116 38 74 Explosive . | . . . . . Electromagnetic 70 | . 8 . 18 44 Robot Hit Streak 40 | . 13 40 25 16 Robot Miss Streak 3 | . 2 2 2 3 Penetration Max . | . . . . . Secondary Targets 10 | . . 2 2 6 Max Gunslinging Chain 2 | . . 1 1 2 Shots Hit Robots 321 | . 24 95 72 130 Core Hits 123 | . 11 31 31 50 Critical Kills . | . . . . . Critical Parts Destroyed 1 | . . . . 1 Critical Strikes 11 | . 1 3 1 6 Burn 7 | . 1 2 1 3 Destroy 2 | . . 1 . 1 Corrupt 2 | . . . . 2 Melee Attacks . | . . . . . Impact . | . . . . . Slashing . | . . . . . Piercing . | . . . . . Sneak Attacks . | . . . . . Combat Hostiles . | . . . . . Follow-up Attacks . | . . . . . Damage Inflicted 6183 | . 425 1793 1471 2494 Guns 5593 | . 261 1731 1427 2174 Cannons 382 | . 164 62 . 156 Explosions 208 | . . . 44 164 Melee . | . . . . . Ramming . | . . . . . Kinetic 2539 | . . 966 684 889 Thermal 3019 | . 335 827 540 1317 Explosive . | . . . . . Electromagnetic 625 | . 90 . 247 288 Impact . | . . . . . Slashing . | . . . . . Piercing . | . . . . . Highest Corruption 18 | . . . . 18 Average Corruption 8 | . . . . 8 Corruption Purged . | . . . . . Corruption Blocked . | . . . . . Effects 21 | . . . . 21 Message Errors 6 | . . . . 6 Matter Fused 7 | . . . . 7 Heat Flow Errors 3 | . . . . 3 Energy Discharges 1 | . . . . 1 Data Loss (minor) 4 | . . . . 4 Overload Shots . | . . . . . Overflow Damage 24 | . . . . 24 Projectiles 20 | . . . . 20 Explosions 4 | . . . . 4 Melee . | . . . . . Knockbacks . | . . . . . Impact . | . . . . . Kinetic . | . . . . . Secondary . | . . . . . Self-Inflicted Damage 74 | . . . 74 . Shots 2 | . . . 2 . Rammed . | . . . . . Targets Rammed 1 | . 1 . . . Kicked 1 | . 1 . . . Crushed . | . . . . . Highest Temperature 333 | . 255 213 333 243 Average Temperature 82 | . 89 47 87 82 Received Heat Transfer 890 | . 84 425 243 138 Effects 3 | . 1 . . 2 Energy Bleed 2 | . 1 . . 1 Interference 1 | . . . . 1 Siege Activations . | . . . . . Robots Corrupted . | . . . . . Combat Hostiles . | . . . . . Parts Fried 3 | . 1 . . 2 Impact Corruptions . | . . . . . Robots Melted . | . . . . . Combat Hostiles . | . . . . . Parts Melted 15 | . . 4 2 9 Heat Transferred 6165 | . 740 2072 1073 2280 Parts Sabotaged . | . . . . . Parts Stolen . | . . . . . Parts Stripped . | . . . . . Power Chain Reactions 2 | . . . 1 1 Alert | -11 -10 -10 -8 -8 ------- Run | Yrd Mat Sub Mat Gar Peak Influence 815 | . 242 . 506 815 Initial 215 | . . . . 215 Average 273 | . 46 . 205 619 Maximum Alert Level 3 | . 1 . 2 3 Low Security (%) 53 | 100 97 . 52 . Level 1 13 | . 2 . 30 10 Level 2 15 | . . . 16 34 Level 3 17 | . . . . 54 Level 4 . | . . . . . Level 5 . | . . . . . High Security . | . . . . . Max Security . | . . . . . Squads Dispatched 2 | . . . 2 . Investigation . | . . . . . Extermination . | . . . . . Reinforcement 2 | . . . 2 . Assault . | . . . . . Garrison . | . . . . . Intercept . | . . . . . Searches Triggered . | . . . . . Construction Impeded . | . . . . . Haulers Reinforced . | . . . . . Active Scanning Responses . | . . . . . Cargo Convoy Interrupts . | . . . . . Stealth | -11 -10 -10 -8 -8 --------- Run | Yrd Mat Sub Mat Gar Distress Signals 4 | . 2 . 2 . Communications Jammed . | . . . . . Distress Signals . | . . . . . Times Spotted 91 | . 14 22 28 27 Peak Tracking Total 6 | . 3 6 5 4 Tactical Retreats 9 | . 3 1 3 2 Traps | -11 -10 -10 -8 -8 ------- Run | Yrd Mat Sub Mat Gar Traps Triggered 5 | . 1 . . 4 Indirectly . | . . . . . Trap Hack Attempts . | . . . . . Triggered . | . . . . . Disarmed . | . . . . . Reprogrammed . | . . . . . Reused . | . . . . . Traps Extracted . | . . . . . Installed . | . . . . . Triggered . | . . . . . Machines | -11 -10 -10 -8 -8 ---------- Run | Yrd Mat Sub Mat Gar Machines Disabled 8 | . . 1 3 4 Max in Single Turn 2 | . . 1 2 1 Garrison Relay 5 | . . . . 5 Machines Repaired . | . . . . . Machines Dismantled . | . . . . . Machines Sabotaged . | . . . . . Overloaded Fab Kills . | . . . . . Hacking | -11 -10 -10 -8 -8 --------- Run | Yrd Mat Sub Mat Gar Machines Accessed 14 | . 6 1 6 1 Terminals 9 | . 6 . 2 1 Fabricators . | . . . . . Repair Stations 1 | . . . 1 . Recycling Units . | . . . . . Scanalyzers 2 | . . . 2 . Garrison Access 1 | . . . 1 . Total Hacks 47 | . 22 1 23 1 Successful 38 | . 14 1 22 1 Failed 8 | . 7 . 1 . Catastrophic . | . . . . . Database Lockouts 1 | . 1 . . . Manual 11 | . 9 . 2 . Terminals 26 | . 22 . 3 1 Fabricators . | . . . . . Repair Stations 2 | . . . 2 . Recycling Units . | . . . . . Scanalyzers 17 | . . . 17 . Garrison Access 1 | . . . 1 . Terminal Hacks 12 | . 9 1 1 1 Record 1 | . 1 . . . Robot Analysis 4 | . 4 . . . Emergency Access Points 1 | . . . . 1 Terminal Index 1 | . 1 . . . Security Status 1 | . 1 . . . Hauler Manifests 1 | . 1 . . . Zone Layout 2 | . 1 . 1 . Derelict Proto ID Bank 1 | . . 1 . . Fabricator Hacks . | . . . . . Repair Station Hacks 2 | . . . 2 . Scan Component 1 | . . . 1 . Repair 1 | . . . 1 . Recycling Unit Hacks . | . . . . . Scanalyzer 16 | . . . 16 . Insert Component 8 | . . . 8 . Analyze 8 | . . . 8 . Garrison Access Hacks 1 | . . . 1 . Unlock Access 1 | . . . 1 . Unauthorized Hacks 7 | . 5 . 2 . Terminals 7 | . 5 . 2 . Skim 7 | . 5 . 2 . Fabricators . | . . . . . Repair Stations . | . . . . . Recycling Units . | . . . . . Scanalyzers . | . . . . . Garrison Access . | . . . . . Data Cores Recovered . | . . . . . Used . | . . . . . Hacking Detections 8 | . 5 . 2 1 Full Trace Events . | . . . . . Feedback Events . | . . . . . Feedback Blocked . | . . . . . Robot Schematics Acquired . | . . . . . Robots Built . | . . . . . Authchips . | . . . . . Time . | . . . . . Total Robot Build Rating . | . . . . . Part Schematics Acquired 8 | . . . 8 . Parts Built . | . . . . . Authchips . | . . . . . Time . | . . . . . Total Part Build Rating . | . . . . . Parts Repaired 1 | . . . 1 . Time 44 | . . . 44 . Parts Recycled . | . . . . . Recycled Matter . | . . . . . Retrieved Matter . | . . . . . Retrieved Components . | . . . . . Parts Scanalyzed 8 | . . . 8 . Part Schematics Acquired 8 | . . . 8 . Parts Damaged 1 | . . . 1 . Bothacking | -11 -10 -10 -8 -8 ------------ Run | Yrd Mat Sub Mat Gar Used RIF Installer . | . . . . . Robots Hacked . | . . . . . Non-combat . | . . . . . Combat . | . . . . . Robot Hacks Applied . | . . . . . Relay Couplers Released 19 | . . . . 19 Machine Destruction 19 | . . . . 19 Fabnet Peak Effective % . | . . . . . Robots Rewired . | . . . . . Allies Hacked . | . . . . . Hacks Repelled . | . . . . . Allies | -11 -10 -10 -8 -8 -------- Run | Yrd Mat Sub Mat Gar Total Allies . | . . . . . Largest Group . | . . . . . Highest-Rated Group . | . . . . . Highest-Rated Ally . | . . . . . Total Orders . | . . . . . Ally Attacks . | . . . . . Total Damage . | . . . . . Kills . | . . . . . Allies Corrupted . | . . . . . Allies Melted . | . . . . . Intel | -11 -10 -10 -8 -8 ------- Run | Yrd Mat Sub Mat Gar Robot Analysis Total 4 | . 4 . . . Derelict Logs Recovered 2 | . . 2 . . Drone Launches . | . . . . . Drone Recoveries . | . . . . . Exploration | -11 -10 -10 -8 -8 ------------- Run | Yrd Mat Sub Mat Gar Turns Passed 5690 | 1 1239 2519 935 996 Spaces Moved 2882 | 1 595 1337 529 420 Core 1 | . . . . 1 Treads 1497 | . 78 1337 82 . Legs 1384 | 1 517 . 447 419 Wheels . | . . . . . Hover . | . . . . . Flight . | . . . . . Fastest Speed 120 | 120 120 160 125 125 Average Speed 149 | 120 138 160 130 158 Slowest Speed 500 | 120 240 240 160 500 Overloaded Moves . | . . . . . Propulsion Burnouts . | . . . . . Robots Hopped . | . . . . . Cave-ins Triggered . | . . . . . Exploration Rate (%) 52 | 2 89 72 48 51 Regions Visited 4 Branch Regions 1 Pre-discovered Areas 1 | . . 1 . . Known Exits Taken 2 | . . 1 1 . Unknown Exits Taken 2 | 1 1 . . . Scrap Searched 5 | . . 5 . . Spaces Dug . | . . . . . Terrain Destroyed 31 | . . 1 27 3 Melee . | . . . . . Projectile 5 | . . 1 4 . AOE 26 | . . . 23 3 Terrain Rammed . | . . . . . Walls Destroyed . | . . . . . Machines Disabled . | . . . . . Actions | -11 -10 -10 -8 -8 --------- Run | Yrd Mat Sub Mat Gar Total 3748 | 2 978 1482 697 589 Wait 415 | . 338 2 66 9 Move 2879 | . 594 1336 529 420 Hop . | . . . . . Pick Up 59 | . 11 8 22 18 Fast Attach 23 | . 6 2 8 7 Attach 24 | . 1 4 11 8 Detach . | . . . . . Swap 14 | . 2 2 5 5 Drop 54 | 2 7 7 18 20 Fire 279 | . 18 121 38 102 Melee . | . . . . . Ram . | . . . . . Kick 1 | . 1 . . . Crush . | . . . . . Escape Stasis . | . . . . . Rewire . | . . . . . Trap . | . . . . . Miscellaneous . | . . . . . Route ------- -11/Scrapyard -10/Materials (discovered 5 exits: [*Mat x3] / [*Min] / *Sub) -10/Subcaves (discovered 3 exits: *Mat x2 / [*Rec]) -8/Materials (discovered 3 exits: [*Fac x2] / Gar) -8/Garrison (discovered 1 exit: [*Fac]) History --------- Turn | Location | Event 2 | -11/Scrapyard | Discovered new exit (range 0) 2 | -11/Scrapyard | Entered Materials 308 | -10/Materials | Build established: Mutant 320 | -10/Materials | Discovered new exit (range 4) 480 | -10/Materials | Discovered new exit (range 8) 502 | -10/Materials | Derelicts attacked the area 791 | -10/Materials | Discovered new exit (range 16) 1031 | -10/Materials | Discovered new exit (range 16) 1060 | -10/Materials | Central database locked down 1145 | -10/Materials | Learned 4 Subcaves zone layouts 1154 | -10/Materials | Discovered new exit (range 16) 1221 | -10/Materials | Learned location of 1 exit from Recycling 1241 | -10/Materials | Entered Subcaves 1242 | -10/Subcaves | Identified exit to Materials 1327 | -10/Subcaves | Shifting Twisted Machinery released Hvy. Battle Rifle 1330 | -10/Subcaves | Shifting Twisted Machinery released Humpback 1362 | -10/Subcaves | Ambushed by Subdweller buried in earth 1458 | -10/Subcaves | A swath of the cavern ceiling suddenly collapsed 1490 | -10/Subcaves | A swath of the cavern ceiling suddenly collapsed 2055 | -10/Subcaves | Shifting Twisted Machinery released Sub. Machine Gun 2057 | -10/Subcaves | Shifting Twisted Machinery released Battle Rifle 2203 | -10/Subcaves | Core integrity fell below 50% 2246 | -10/Subcaves | Discovered exit to Materials (range 7) 2444 | -10/Subcaves | Visited 4L-MR0's lab 2466 | -10/Subcaves | Found Prototype Power Core 2472 | -10/Subcaves | Identified Meta Core 2568 | -10/Subcaves | Learned location of Zion (-6) 3116 | -10/Subcaves | Learned Materials garrison access intel 3450 | -10/Subcaves | Discovered new exit (range 11) 3453 | -10/Subcaves | Core integrity fell below 20% 3760 | -10/Subcaves | Entered Materials 3760 | -8/Materials | Evolved 4 slots: Propulsion x1, Utility x3 3761 | -8/Materials | Loaded intel: 1 garrison access location 3909 | -8/Materials | Attached Meta Core, gained temporary slots: Propulsion, Utility, Weapon 3997 | -8/Materials | Repaired Hvy. Battle Rifle 4127 | -8/Materials | Discovered new exit (range 16) 4297 | -8/Materials | Destroyed 8 combat bots 4575 | -8/Materials | Discovered new exit (range 8) 4638 | -8/Materials | Build established: Hacker-Tank 4695 | -8/Materials | Identified exit to Garrison 4695 | -8/Materials | Entered Garrison 4745 | -8/Garrison | Triggered checkpoint 4759 | -8/Garrison | Triggered checkpoint 4781 | -8/Garrison | Triggered checkpoint 4793 | -8/Garrison | Triggered checkpoint 4821 | -8/Garrison | Destroyed 8 combat bots 4925 | -8/Garrison | Triggered checkpoint 4927 | -8/Garrison | Garrison Relay disabled 5016 | -8/Garrison | Discovered new exit (range 8) 5040 | -8/Garrison | Garrison Relay disabled 5073 | -8/Garrison | Garrison Relay disabled 5093 | -8/Garrison | Lost 3 parts (3n) 5120 | -8/Garrison | Garrison Relay disabled 5146 | -8/Garrison | Garrison Relay disabled 5285 | -8/Garrison | Build established: Hacker-Mutant 5612 | -8/Garrison | Core integrity fell below 50% 5612 | -8/Garrison | System corruption reached 10% 5647 | -8/Garrison | Core integrity fell below 20% 5665 | -8/Garrison | Lost 11 parts (3n4u4w) 5691 | -8/Garrison | Destroyed by P-60 Hacker with Shock Rifle Last Messages --------------- 05629_ 3 V8B0NK1XKSVOE 05631_ P-60 Hacker destroyed. 05632_ P-60 Hacker resets P-60 Hacker, system corruption cleaned. 05634_ Lightning Gun destroyed. 05647_ System corrupted: Heat flow error (+139). 05650_ The unstable cave ceiling collapses. 05651_ Mic. Nuclear Core crushed. 05657_ Overheating: Energy bleed (-23). 05664_ Overheating: System interference. 05664_ Lightning Gun temporarily disabled. 05668_ Lightning Gun destroyed. 05673_ System corrupted: Matter fused (-6). 05673_ Acquired Plasma Cannon. 05683_ Destroyed Gravmag System. 05685_ The unstable cave ceiling collapses. 05685_ P-60 Hacker misfires. 05691_ System corrupted: Matter fused (-10). Map ----- +----------------------------------------------------+ | ??????????????????????????????????????????# ## | | ??????????????????????????????????????????# ## = | | ?????????????????+????????????????????????# #### | | ??????????????????????????????????????????+ #??# | | ??????????????????????????????????????????# #??# | | ???????????????????????????+??????????????# #??# | | ??????????????????????????????????????????# #??# | | ????????????+??????????####+######++####### #??# | | ?????????????????????? #??# | | ?????????????????????? #??# | | ?????????????????????? % #??? | | ???????????????????????????#+##### ########??? | | ???????????????????????????# #??# #????????? | | ???????????????????#???????# #??# #?????????? | | ???????????????????# ??????# #??# * ##????????? | | ???????????????????# ??????# #??# # #????????? | | ???????????????????# ??????# #??### ##????????? | | ???????????????????# ??????# #????## ##?????????? | | ???????????????????# ??????# #?????# ##??????????? | | ???????????????????# ??????# #?????# #???????????? | | ????????????####??## ??##### #??#### #???????????? | | ?????????????! + ?# ## # ### ## #???????????? | | ???????????????# !## ### # # ## #?###???????? | | ????????????#;###p ! ## # ##!!##??????? | | ????????????# =%= ] #??????? | | ?????????????+###""# ! @# # [ ! # # !#??????? | | ???????????????# !; ! ] ! [[ # #]] !#??????? | | ????????????#! ; !; % ! ] [%[ # #]] !#??????? | | ????????????####### # # # ###########??????? | | ??????????????????### ## ###### # ##?????????????? | | ????????????????????###?###??######??????????????? | | ?????????????????????????????????????????????????? | | ?????????????????????????????????????????????????? | | ?????????????????????????????????????????????????? | | ?????????????????????????????????????????????????? | | ?????????????????????????????????????????????????? | | ?????????????????????????????????????????????????? | | ?????????????????????????????????????????????????? | | ?????????????????????????????????????????????????? | | ?????????????????????????????????????????????????? | | ?????????????????????????????????????????????????? | | ?????????????????????????????????????????????????? | | ?????????????????????????????????????????????????? | | | | | | | | | | | | | | | +----------------------------------------------------+ Best States ------------- Heat Dissipation 51 Energy Generation 17 Energy Capacity 250 Matter Stores 300 Matter Capacity 300 Sight Range 16 Terrain Scan Density 10 Armor Coverage 450 Resistance: KI 20 Resistance: TH 20 Resistance: EX 20 Resistance: EM 20 Resistance: I 20 Resistance: S 20 Resistance: P 20 Core Shielding 20 Weapon Shielding 66 Evasion (%) 63 Recoil Reduction 3 Offensive Hacking 10 Defensive Hacking 11 Item Schematics ----------------- Imp. Aluminum Leg | -8/Materials | Scanalyzed Lgt. Nuclear Core | -8/Materials | Scanalyzed Hvy. EM Shotgun | -8/Materials | Scanalyzed Carbon-fiber Leg | -8/Materials | Scanalyzed Lrg. Storage Unit | -8/Materials | Scanalyzed Lgt. Treads | -8/Materials | Scanalyzed Battle Rifle | -8/Materials | Scanalyzed Lgt. Armor Plating | -8/Materials | Scanalyzed Robot Schematics ------------------ None Fabricated ------------ Nothing Alien Tech Used ----------------- None Achievements -------------- None Challenges ------------ None Game ------ Seed StructuralSurveybotWell Manual? 0 Play Time 00:45:20 Cumulative 314.4 hours Start 2024.08.25 @ 09:23:03 End 2024.08.25 @ 10:13:27 Sessions 1 Manual Loads 0 Difficulty Adventurer Special Mode None Game No. 240 Rogue 63 Adventurer 151 Explorer 26 Win Type - Total 1 Types 1/0/0/0/0/0/0/0/0 Lore% 76 Gallery% 73 Achievement% 68 Wizard Run 0 Options --------- Layout 2 ASCII 0 Keyboard 0 Movement Mouse Keybinds 0 Fullscreen 0 Font 18/CogNarrow Map View 64x51 Zoom Use 0% Tactical HUD 1 Map Filters NONE Filters BRIGHTNESS(115)|SATURATION(100)|LOW_CONTRAST(0,16,30) Steam 1 RUN: 6d5cee6e-20d7-41a3-b6d3-65854f38c656